[Event "*** Titled Tuesday Blitz"]
[Site "Chess.com"]
[Date "2021.04.27"]
[Round "7"]
[White "fabianvivasz"]
[Black "PawnEatingZombie"]
[Result "0-1"]
[WhiteElo "2357"]
[BlackElo "2262"]
[TimeControl "180+1"]
[EndTime "11:15:41 PDT"]
[Termination "PawnEatingZombie won by resignation"]

1. c4 {[%clk 0:03:00.9]} 1... e6 {[%clk 0:02:59.4]} 2. g3 {[%clk 0:03:00.2]}
2... d5 {[%clk 0:02:59.7]} 3. Bg2 {[%clk 0:03:00.7]} 3... dxc4 {[%clk
0:02:59.8]} 4. Nf3 {[%clk 0:02:57.9]} 4... a6 {[%clk 0:02:59]} 5. a4 {[%clk
0:02:50.4]} 5... Nc6 {[%clk 0:02:58.6]} 6. Na3 {[%clk 0:02:41.7]} 6... Bxa3
{[%clk 0:02:57.4]} 7. bxa3 {[%clk 0:02:37.6]} 7... e5 {[%clk 0:02:57.7]} 8. Qc2
{[%clk 0:02:32.2]} 8... Be6 {[%clk 0:02:55.8]} 9. Rb1 {[%clk 0:02:24.4]} 9...
Rb8 {[%clk 0:02:51.4]} 10. O-O {[%clk 0:02:14.9]} 10... f6 {[%clk 0:02:50]} 11.
Rd1 {[%clk 0:02:06.1]} 11... Nge7 {[%clk 0:02:48.9]} 12. d3 {[%clk 0:01:50.9]}
12... cxd3 {[%clk 0:02:49.8]} 13. Rxd3 {[%clk 0:01:51.1]} 13... Qc8 {[%clk
0:02:50]} 14. Rc3 {[%clk 0:01:34.5]} 14... O-O {[%clk 0:02:47.2]} 15. Rc5 {[%clk
0:01:01]} 15... Kh8 {[%clk 0:02:36.3]} 16. Qc3 {[%clk 0:00:48.8]} 16... Qd7
{[%clk 0:02:18.6]} 17. Bb2 {[%clk 0:00:30.7]} 17... b6 {[%clk 0:01:58.6]} 18.
Nxe5 {[%clk 0:00:22.7]} 18... Nxe5 {[%clk 0:01:59]} 19. Rxc7 {[%clk 0:00:22.1]}
19... Qd6 {[%clk 0:01:58.6]} 20. f4 {[%clk 0:00:17.5]} 20... Nf7 {[%clk
0:01:24.7]} 21. e4 {[%clk 0:00:14.1]} 21... Rbc8 {[%clk 0:01:15.9]} 22. Rxc8
{[%clk 0:00:10.7]} 22... Rxc8 {[%clk 0:01:15]} 23. Qf3 {[%clk 0:00:09.8]} 23...
Qc5+ {[%clk 0:01:12.7]} 24. Kh1 {[%clk 0:00:09.7]} 24... Qc2 {[%clk 0:01:08.8]}
25. Qf1 {[%clk 0:00:06.7]} 25... Bc4 {[%clk 0:01:02]} 26. Qg1 {[%clk 0:00:06.6]}
26... Bd3 {[%clk 0:00:57.5]} 27. Rc1 {[%clk 0:00:02.7]} 27... Qxb2 {[%clk
0:00:53.8]} 28. Rxc8+ {[%clk 0:00:03.2]} 28... Nxc8 {[%clk 0:00:53.9]} 0-1

[Event "*** Titled Tuesday Blitz"]
[Site "Chess.com"]
[Date "2021.04.27"]
[Round "7"]
[White "picturesquecheck"]
[Black "masteryoungK"]
[Result "1-0"]
[WhiteElo "2303"]
[BlackElo "2413"]
[TimeControl "180+1"]
[EndTime "11:15:48 PDT"]
[Termination "picturesquecheck won on time"]

1. e4 {[%clk 0:03:00.9]} 1... c5 {[%clk 0:02:59.8]} 2. Nf3 {[%clk 0:03:00.6]}
2... d6 {[%clk 0:03:00.4]} 3. d4 {[%clk 0:03:00]} 3... cxd4 {[%clk 0:03:01.3]}
4. Nxd4 {[%clk 0:03:00.2]} 4... Nf6 {[%clk 0:03:02.1]} 5. Nc3 {[%clk 0:02:58.6]}
5... Nc6 {[%clk 0:03:02.5]} 6. Bg5 {[%clk 0:02:57.9]} 6... e6 {[%clk 0:03:02.7]}
7. Qd2 {[%clk 0:02:57.8]} 7... a6 {[%clk 0:03:03.1]} 8. O-O-O {[%clk 0:02:57]}
8... Bd7 {[%clk 0:03:03.5]} 9. f4 {[%clk 0:02:55.8]} 9... b5 {[%clk 0:03:03.7]}
10. Bxf6 {[%clk 0:02:52.3]} 10... gxf6 {[%clk 0:03:03.4]} 11. Kb1 {[%clk
0:02:50.6]} 11... Qb6 {[%clk 0:03:03.3]} 12. Nce2 {[%clk 0:02:48.2]} 12... Na5
{[%clk 0:02:39.2]} 13. b3 {[%clk 0:02:44.7]} 13... Rc8 {[%clk 0:02:32.4]} 14. g4
{[%clk 0:02:40.2]} 14... Bg7 {[%clk 0:02:19.7]} 15. h4 {[%clk 0:02:35.3]} 15...
f5 {[%clk 0:01:51.3]} 16. gxf5 {[%clk 0:02:25.7]} 16... Nc4 {[%clk 0:01:49.3]}
17. bxc4 {[%clk 0:02:22.8]} 17... bxc4+ {[%clk 0:01:49.6]} 18. Ka1 {[%clk
0:02:22.7]} 18... c3 {[%clk 0:01:28.5]} 19. Nxc3 {[%clk 0:02:18]} 19... Qb4
{[%clk 0:01:23.1]} 20. Nce2 {[%clk 0:02:11.5]} 20... Qa4 {[%clk 0:01:11.6]} 21.
c3 {[%clk 0:02:03.8]} 21... exf5 {[%clk 0:00:43.4]} 22. exf5 {[%clk 0:02:00.9]}
22... Kd8 {[%clk 0:00:34.6]} 23. Bg2 {[%clk 0:01:56.9]} 23... Re8 {[%clk
0:00:34.1]} 24. Rhe1 {[%clk 0:01:50.9]} 24... Qa5 {[%clk 0:00:21.4]} 25. Qb2
{[%clk 0:01:40.9]} 25... Re3 {[%clk 0:00:17.1]} 26. Rc1 {[%clk 0:01:37.3]} 26...
Kc7 {[%clk 0:00:12.5]} 27. Nb3 {[%clk 0:01:19.2]} 27... Qb6 {[%clk 0:00:08.9]}
28. Ned4 {[%clk 0:01:17.5]} 28... Rg3 {[%clk 0:00:06.7]} 29. Bd5 {[%clk
0:01:14.3]} 29... Kb8 {[%clk 0:00:06.8]} 30. Bxf7 {[%clk 0:01:08.1]} 30... Ka7
{[%clk 0:00:07.3]} 31. Be6 {[%clk 0:01:07]} 31... Qc7 {[%clk 0:00:04.7]} 32. Qf2
{[%clk 0:01:04.1]} 32... Ka8 {[%clk 0:00:04.3]} 33. Qxg3 {[%clk 0:01:03.2]} 1-0

[Event "*** Titled Tuesday Blitz"]
[Site "Chess.com"]
[Date "2021.04.27"]
[Round "7"]
[White "aljado"]
[Black "politeplayer"]
[Result "0-1"]
[WhiteElo "2039"]
[BlackElo "2240"]
[TimeControl "180+1"]
[EndTime "11:15:51 PDT"]
[Termination "politeplayer won by resignation"]

1. e4 {[%clk 0:03:00.9]} 1... e6 {[%clk 0:01:21.5]} 2. d4 {[%clk 0:02:58.9]}
2... d5 {[%clk 0:01:21.4]} 3. e5 {[%clk 0:02:58.8]} 3... c5 {[%clk 0:01:21]} 4.
c3 {[%clk 0:02:59.2]} 4... Qb6 {[%clk 0:01:19.6]} 5. Nf3 {[%clk 0:02:59.1]} 5...
Bd7 {[%clk 0:01:19.1]} 6. Bd3 {[%clk 0:02:56]} 6... Nc6 {[%clk 0:01:18]} 7. O-O
{[%clk 0:02:53.3]} 7... cxd4 {[%clk 0:01:17.6]} 8. cxd4 {[%clk 0:02:52.1]} 8...
Nxd4 {[%clk 0:01:17.7]} 9. Nxd4 {[%clk 0:02:51.1]} 9... Qxd4 {[%clk 0:01:17.8]}
10. Nc3 {[%clk 0:02:50.5]} 10... a6 {[%clk 0:01:17.2]} 11. Be3 {[%clk
0:02:46.3]} 11... Qxe5 {[%clk 0:01:12.7]} 12. Re1 {[%clk 0:02:46.1]} 12... Qd6
{[%clk 0:01:05.6]} 13. Qf3 {[%clk 0:02:31.5]} 13... Be7 {[%clk 0:00:55.5]} 14.
Bf4 {[%clk 0:02:28]} 14... Qb6 {[%clk 0:00:55.1]} 15. Be5 {[%clk 0:02:17.9]}
15... Nf6 {[%clk 0:00:53.2]} 16. Bxf6 {[%clk 0:02:16.2]} 16... gxf6 {[%clk
0:00:50.7]} 17. Rac1 {[%clk 0:01:17.2]} 17... Qxb2 {[%clk 0:00:49.8]} 18. Qg3
{[%clk 0:00:56.3]} 18... Rc8 {[%clk 0:00:46.5]} 19. Qg7 {[%clk 0:00:15.4]} 19...
Rf8 {[%clk 0:00:46.1]} 20. Rc2 {[%clk 0:00:11.7]} 20... Qb4 {[%clk 0:00:41.5]}
21. Rec1 {[%clk 0:00:11]} 21... d4 {[%clk 0:00:38.9]} 22. Ne4 {[%clk 0:00:06.4]}
22... Rxc2 {[%clk 0:00:38]} 23. Rxc2 {[%clk 0:00:06.3]} 23... Qe1+ {[%clk
0:00:37]} 24. Bf1 {[%clk 0:00:06]} 24... Qxe4 {[%clk 0:00:35.8]} 0-1

[Event "*** Titled Tuesday Blitz"]
[Site "Chess.com"]
[Date "2021.04.27"]
[Round "7"]
[White "sm_sharon"]
[Black "akanga001"]
[Result "1-0"]
[WhiteElo "2146"]
[BlackElo "1980"]
[TimeControl "180+1"]
[EndTime "11:15:53 PDT"]
[Termination "sm_sharon won on time"]

1. e4 {[%clk 0:02:59.2]} 1... c6 {[%clk 0:02:53.5]} 2. Nc3 {[%clk 0:02:57.8]}
2... d5 {[%clk 0:02:38.1]} 3. Nf3 {[%clk 0:02:57.4]} 3... dxe4 {[%clk
0:02:36.8]} 4. Nxe4 {[%clk 0:02:58.1]} 4... Bg4 {[%clk 0:02:34.8]} 5. h3 {[%clk
0:02:57.9]} 5... Bh5 {[%clk 0:02:30]} 6. Bc4 {[%clk 0:02:53.9]} 6... e6 {[%clk
0:02:27.3]} 7. Ng3 {[%clk 0:02:50.7]} 7... Bg6 {[%clk 0:02:26.5]} 8. O-O {[%clk
0:02:46.2]} 8... Nf6 {[%clk 0:02:25.3]} 9. Ne5 {[%clk 0:02:45.1]} 9... Nbd7
{[%clk 0:02:25.4]} 10. d4 {[%clk 0:02:44]} 10... Nxe5 {[%clk 0:02:22.8]} 11.
dxe5 {[%clk 0:02:44.3]} 11... Qxd1 {[%clk 0:02:21.3]} 12. Rxd1 {[%clk
0:02:44.8]} 12... Nd7 {[%clk 0:02:22.1]} 13. Re1 {[%clk 0:02:25.2]} 13... Bxc2
{[%clk 0:02:19.4]} 14. f4 {[%clk 0:02:25.4]} 14... O-O-O {[%clk 0:02:18.5]} 15.
Be3 {[%clk 0:02:24.2]} 15... Bc5 {[%clk 0:02:17.1]} 16. Kf2 {[%clk 0:02:22.3]}
16... Bxe3+ {[%clk 0:02:13.8]} 17. Kxe3 {[%clk 0:02:23.2]} 17... Nc5 {[%clk
0:02:13.5]} 18. Rac1 {[%clk 0:02:19.5]} 18... Bd3 {[%clk 0:02:10.3]} 19. b4
{[%clk 0:01:57]} 19... Bxc4 {[%clk 0:02:07.4]} 20. Rxc4 {[%clk 0:01:57.9]} 20...
Nd3 {[%clk 0:01:51.9]} 21. Re2 {[%clk 0:01:44]} 21... Rd5 {[%clk 0:01:34.3]} 22.
Ne4 {[%clk 0:01:39.5]} 22... Rhd8 {[%clk 0:01:18.2]} 23. Nd6+ {[%clk 0:01:12.3]}
23... Kc7 {[%clk 0:01:18]} 24. Rd2 {[%clk 0:01:04]} 24... Nxe5 {[%clk
0:00:06.1]} 25. fxe5 {[%clk 0:00:53.5]} 25... Rxe5+ {[%clk 0:00:05.9]} 26. Re4
{[%clk 0:00:50.7]} 1-0

[Event "*** Titled Tuesday Blitz"]
[Site "Chess.com"]
[Date "2021.04.27"]
[Round "7"]
[White "szefru"]
[Black "UKR_Master"]
[Result "0-1"]
[WhiteElo "2185"]
[BlackElo "2475"]
[TimeControl "180+1"]
[EndTime "11:15:57 PDT"]
[Termination "UKR_Master won by checkmate"]

1. e4 {[%clk 0:03:00.9]} 1... c6 {[%clk 0:03:00.5]} 2. d4 {[%clk 0:02:59.2]}
2... d5 {[%clk 0:03:01]} 3. Nc3 {[%clk 0:02:59.3]} 3... dxe4 {[%clk 0:03:00.8]}
4. Nxe4 {[%clk 0:03:00.2]} 4... Nf6 {[%clk 0:03:01.3]} 5. Nxf6+ {[%clk
0:02:59.6]} 5... exf6 {[%clk 0:03:02.2]} 6. Be3 {[%clk 0:03:00]} 6... Bd6 {[%clk
0:03:02.4]} 7. Qd2 {[%clk 0:03:00.7]} 7... Na6 {[%clk 0:02:59.6]} 8. Bxa6 {[%clk
0:02:43.4]} 8... bxa6 {[%clk 0:02:59.6]} 9. Nf3 {[%clk 0:02:42.8]} 9... Rb8
{[%clk 0:02:58.7]} 10. b3 {[%clk 0:02:42]} 10... Bf5 {[%clk 0:02:52]} 11. O-O
{[%clk 0:02:37.3]} 11... O-O {[%clk 0:02:51.6]} 12. h3 {[%clk 0:02:18.3]} 12...
a5 {[%clk 0:02:49]} 13. c4 {[%clk 0:02:13]} 13... a4 {[%clk 0:02:44]} 14. c5
{[%clk 0:02:10.7]} 14... Bc7 {[%clk 0:02:41.6]} 15. b4 {[%clk 0:02:09.2]} 15...
a5 {[%clk 0:02:35.9]} 16. a3 {[%clk 0:02:07.6]} 16... Qd5 {[%clk 0:02:32.2]} 17.
Ne1 {[%clk 0:01:18.3]} 17... Qb3 {[%clk 0:02:14]} 18. Bf4 {[%clk 0:01:02.8]}
18... Bxf4 {[%clk 0:02:03.9]} 19. Qxf4 {[%clk 0:01:03.7]} 19... Be6 {[%clk
0:01:58]} 20. bxa5 {[%clk 0:00:59.6]} 20... Bd5 {[%clk 0:01:57.9]} 21. Nf3
{[%clk 0:00:54.6]} 21... Qb5 {[%clk 0:01:54.6]} 22. Nh4 {[%clk 0:00:51.6]} 22...
Qxa5 {[%clk 0:01:50.5]} 23. Nf5 {[%clk 0:00:51.6]} 23... Rfe8 {[%clk 0:01:43.3]}
24. Qg4 {[%clk 0:00:50.2]} 24... g6 {[%clk 0:01:42.2]} 25. Nd6 {[%clk 0:00:48]}
25... Re6 {[%clk 0:01:37.6]} 26. Rfb1 {[%clk 0:00:45.6]} 26... Rb3 {[%clk
0:01:26.1]} 27. Qf4 {[%clk 0:00:27]} 27... Qc3 {[%clk 0:01:17.7]} 28. Nb7 {[%clk
0:00:19.9]} 28... Rxb7 {[%clk 0:01:13.4]} 29. Rxb7 {[%clk 0:00:16.7]} 29...
Qxa1+ {[%clk 0:01:13.5]} 30. Kh2 {[%clk 0:00:17.4]} 30... Kg7 {[%clk 0:01:09.7]}
31. Qc7 {[%clk 0:00:15.8]} 31... Re1 {[%clk 0:01:09.5]} 32. Rb8 {[%clk
0:00:14.6]} 32... Rh1+ {[%clk 0:01:07.2]} 33. Kg3 {[%clk 0:00:15.1]} 33... Qc3+
{[%clk 0:00:56.4]} 34. f3 {[%clk 0:00:13]} 34... Qe1+ {[%clk 0:00:56.7]} 35. Kg4
{[%clk 0:00:10.3]} 35... h5+ {[%clk 0:00:55.4]} 36. Kf4 {[%clk 0:00:10]} 36...
g5+ {[%clk 0:00:55.6]} 37. Kf5 {[%clk 0:00:09.3]} 37... Qe6# {[%clk 0:00:56.2]}
0-1

[Event "*** Titled Tuesday Blitz"]
[Site "Chess.com"]
[Date "2021.04.27"]
[Round "7"]
[White "tapu2"]
[Black "ChristopherYoo"]
[Result "1-0"]
[WhiteElo "2730"]
[BlackElo "2928"]
[TimeControl "180+1"]
[EndTime "11:16:01 PDT"]
[Termination "tapu2 won by resignation"]

1. e4 {[%clk 0:03:00.9]} 1... c5 {[%clk 0:02:57.5]} 2. Nc3 {[%clk 0:03:01.2]}
2... e6 {[%clk 0:02:50.4]} 3. f4 {[%clk 0:03:00.9]} 3... d5 {[%clk 0:02:49.7]}
4. Nf3 {[%clk 0:03:00.8]} 4... Nc6 {[%clk 0:02:49.6]} 5. Bb5 {[%clk 0:02:59.9]}
5... Ne7 {[%clk 0:02:48.3]} 6. Ne5 {[%clk 0:02:59.3]} 6... f6 {[%clk 0:02:21.6]}
7. Nxc6 {[%clk 0:02:45.9]} 7... bxc6 {[%clk 0:02:18]} 8. Be2 {[%clk 0:02:45.7]}
8... f5 {[%clk 0:02:04.4]} 9. d3 {[%clk 0:02:34.9]} 9... Ng6 {[%clk 0:01:56.8]}
10. O-O {[%clk 0:02:31.9]} 10... Be7 {[%clk 0:01:56.4]} 11. g3 {[%clk
0:02:25.7]} 11... O-O {[%clk 0:01:55.6]} 12. e5 {[%clk 0:02:26.1]} 12... a5
{[%clk 0:01:49.9]} 13. b3 {[%clk 0:02:21.3]} 13... Bb7 {[%clk 0:01:49.2]} 14.
Bf3 {[%clk 0:02:18.5]} 14... Nh8 {[%clk 0:01:42.3]} 15. Na4 {[%clk 0:02:17.7]}
15... g5 {[%clk 0:01:13.9]} 16. fxg5 {[%clk 0:02:16.2]} 16... Nf7 {[%clk
0:01:12.6]} 17. Qe2 {[%clk 0:02:12.8]} 17... Ba6 {[%clk 0:00:57.1]} 18. h4
{[%clk 0:02:03.5]} 18... Bb5 {[%clk 0:00:52]} 19. Bf4 {[%clk 0:01:53.8]} 19...
Bxa4 {[%clk 0:00:51.4]} 20. bxa4 {[%clk 0:01:54.1]} 20... Rb8 {[%clk 0:00:51.6]}
21. Rab1 {[%clk 0:01:52.9]} 21... Qc7 {[%clk 0:00:49.4]} 22. g4 {[%clk
0:01:42.1]} 22... Rxb1 {[%clk 0:00:47.4]} 23. Rxb1 {[%clk 0:01:41]} 23... Nh8
{[%clk 0:00:45]} 24. Bg3 {[%clk 0:01:30]} 24... Ng6 {[%clk 0:00:40.2]} 25. h5
{[%clk 0:01:28.8]} 25... f4 {[%clk 0:00:28.6]} 26. hxg6 {[%clk 0:01:23.4]} 26...
fxg3 {[%clk 0:00:27.7]} 27. gxh7+ {[%clk 0:01:23.8]} 27... Kxh7 {[%clk
0:00:27.3]} 28. Qe3 {[%clk 0:01:11.9]} 28... Kg7 {[%clk 0:00:19.2]} 29. Kg2
{[%clk 0:01:11.2]} 29... d4 {[%clk 0:00:17.9]} 30. Qe4 {[%clk 0:01:08.8]} 30...
Bxg5 {[%clk 0:00:16.8]} 31. Rh1 {[%clk 0:01:06.4]} 31... Rh8 {[%clk 0:00:15.4]}
32. Rxh8 {[%clk 0:01:06.3]} 32... Kxh8 {[%clk 0:00:16.3]} 33. Qg6 {[%clk
0:01:06.5]} 33... Qe7 {[%clk 0:00:04.4]} 34. Be4 {[%clk 0:01:04.2]} 34... Bf4
{[%clk 0:00:02.2]} 35. Kf3 {[%clk 0:01:00.3]} 35... Bxe5 {[%clk 0:00:01.7]} 36.
Qh5+ {[%clk 0:01:00.7]} 36... Kg8 {[%clk 0:00:02]} 37. Qxe5 {[%clk 0:01:00.8]}
1-0

[Event "*** Titled Tuesday Blitz"]
[Site "Chess.com"]
[Date "2021.04.27"]
[Round "7"]
[White "InvisibleWarrior2252"]
[Black "Novoselski"]
[Result "1-0"]
[WhiteElo "2561"]
[BlackElo "2403"]
[TimeControl "180+1"]
[EndTime "11:16:01 PDT"]
[Termination "InvisibleWarrior2252 won by resignation"]

1. e4 {[%clk 0:03:00.9]} 1... e5 {[%clk 0:02:58.9]} 2. Nf3 {[%clk 0:03:01.2]}
2... Nc6 {[%clk 0:02:58.9]} 3. Bc4 {[%clk 0:03:01.9]} 3... Bc5 {[%clk
0:02:57.9]} 4. c3 {[%clk 0:03:02.2]} 4... Qe7 {[%clk 0:02:57.2]} 5. O-O {[%clk
0:02:57.9]} 5... Nf6 {[%clk 0:02:55.8]} 6. d4 {[%clk 0:02:57.9]} 6... Bb6 {[%clk
0:02:55.3]} 7. Re1 {[%clk 0:02:56.8]} 7... d6 {[%clk 0:02:54.5]} 8. h3 {[%clk
0:02:57.4]} 8... O-O {[%clk 0:02:52.8]} 9. a4 {[%clk 0:02:57.2]} 9... a6 {[%clk
0:02:51.8]} 10. Bg5 {[%clk 0:02:55.7]} 10... h6 {[%clk 0:02:50.7]} 11. Bh4
{[%clk 0:02:55.3]} 11... Nd8 {[%clk 0:02:48.2]} 12. Nbd2 {[%clk 0:02:47.5]}
12... c6 {[%clk 0:02:43.1]} 13. Nf1 {[%clk 0:02:43.5]} 13... Bc7 {[%clk
0:02:41.1]} 14. Ng3 {[%clk 0:02:40.4]} 14... Be6 {[%clk 0:02:38.2]} 15. Bd3
{[%clk 0:02:34.9]} 15... g6 {[%clk 0:02:28]} 16. Qd2 {[%clk 0:02:31.6]} 16...
Kg7 {[%clk 0:02:27.1]} 17. Rf1 {[%clk 0:02:15.4]} 17... Rh8 {[%clk 0:02:25.7]}
18. Rae1 {[%clk 0:02:14.8]} 18... Kf8 {[%clk 0:02:16.8]} 19. c4 {[%clk
0:01:44.6]} 19... exd4 {[%clk 0:02:08.6]} 20. Nxd4 {[%clk 0:01:42.8]} 20... Bb6
{[%clk 0:01:59.7]} 21. Ndf5 {[%clk 0:01:40.8]} 21... gxf5 {[%clk 0:01:45.9]} 22.
Nxf5 {[%clk 0:01:39]} 22... Bxf5 {[%clk 0:01:29.9]} 23. exf5 {[%clk 0:01:39.9]}
23... Qd7 {[%clk 0:01:24.5]} 24. Bxf6 {[%clk 0:01:39.1]} 24... Rh7 {[%clk
0:01:24]} 25. Be7+ {[%clk 0:01:39.5]} 25... Kg8 {[%clk 0:01:22.4]} 26. f6 {[%clk
0:01:39.9]} 26... Ne6 {[%clk 0:01:16.3]} 27. Bxh7+ {[%clk 0:01:33.5]} 27... Kxh7
{[%clk 0:01:17.2]} 28. Qd3+ {[%clk 0:01:32.9]} 28... Kh8 {[%clk 0:01:14.3]} 29.
Re4 {[%clk 0:01:30.3]} 29... Rg8 {[%clk 0:01:12.5]} 30. Rh4 {[%clk 0:01:30]}
30... Rg6 {[%clk 0:01:11.9]} 31. Qf5 {[%clk 0:01:20.6]} 31... Qe8 {[%clk
0:00:45.5]} 32. Re1 {[%clk 0:01:18.1]} 32... Nd4 {[%clk 0:00:39.4]} 33. Qh5
{[%clk 0:00:56.6]} 33... Kh7 {[%clk 0:00:31.4]} 34. Ree4 {[%clk 0:00:54]} 34...
Qg8 {[%clk 0:00:28]} 35. Reg4 {[%clk 0:00:48.8]} 35... Ne6 {[%clk 0:00:20.1]}
36. Qxh6+ {[%clk 0:00:44.2]} 36... Rxh6 {[%clk 0:00:18.8]} 37. Rxh6+ {[%clk
0:00:45.1]} 1-0

[Event "*** Titled Tuesday Blitz"]
[Site "Chess.com"]
[Date "2021.04.27"]
[Round "7"]
[White "BursaBBSatranc"]
[Black "MIJuanReyesRosa"]
[Result "1-0"]
[WhiteElo "2569"]
[BlackElo "2049"]
[TimeControl "180+1"]
[EndTime "11:16:05 PDT"]
[Termination "BursaBBSatranc won on time"]

1. d4 {[%clk 0:03:00.9]} 1... e6 {[%clk 0:02:58.9]} 2. Nf3 {[%clk 0:03:01]} 2...
c5 {[%clk 0:02:57.8]} 3. c3 {[%clk 0:02:59.9]} 3... Qb6 {[%clk 0:02:51.9]} 4. e4
{[%clk 0:02:57.7]} 4... Nf6 {[%clk 0:02:39.9]} 5. Bd3 {[%clk 0:02:40.4]} 5...
Nc6 {[%clk 0:02:30.4]} 6. Bc2 {[%clk 0:02:26.7]} 6... cxd4 {[%clk 0:02:24]} 7.
cxd4 {[%clk 0:02:26.7]} 7... Nb4 {[%clk 0:02:14.2]} 8. Nc3 {[%clk 0:02:26.6]}
8... Nxc2+ {[%clk 0:02:12.7]} 9. Qxc2 {[%clk 0:02:27.5]} 9... d6 {[%clk
0:01:45.9]} 10. O-O {[%clk 0:02:25.7]} 10... Be7 {[%clk 0:01:45.9]} 11. Be3
{[%clk 0:02:25.5]} 11... Qa5 {[%clk 0:01:38.2]} 12. h3 {[%clk 0:02:19.1]} 12...
O-O {[%clk 0:01:35.9]} 13. a3 {[%clk 0:02:16.7]} 13... Bd7 {[%clk 0:01:30.1]}
14. b4 {[%clk 0:02:16.7]} 14... Qh5 {[%clk 0:01:30]} 15. Rfc1 {[%clk 0:02:07.5]}
15... Rac8 {[%clk 0:01:29.5]} 16. Qd3 {[%clk 0:02:06.7]} 16... d5 {[%clk
0:01:09.7]} 17. e5 {[%clk 0:02:00.6]} 17... Ne8 {[%clk 0:00:38]} 18. Rc2 {[%clk
0:01:38]} 18... g6 {[%clk 0:00:29.6]} 19. Rac1 {[%clk 0:01:33]} 19... Ng7 {[%clk
0:00:29.2]} 20. Ne2 {[%clk 0:01:27.6]} 20... Nf5 {[%clk 0:00:27.1]} 21. Nf4
{[%clk 0:01:21.6]} 21... Qh6 {[%clk 0:00:05.4]} 22. Nxd5 {[%clk 0:01:21.2]}
22... Nxe3 {[%clk 0:00:03.7]} 23. Nxe7+ {[%clk 0:01:20.9]} 23... Kg7 {[%clk
0:00:02.6]} 24. Rxc8 {[%clk 0:00:57.3]} 24... Bxc8 {[%clk 0:00:02.5]} 25. Qxe3
{[%clk 0:00:52.2]} 25... Qxe3 {[%clk 0:00:01.7]} 26. fxe3 {[%clk 0:00:52.1]}
26... Bd7 {[%clk 0:00:02.6]} 27. Rc7 {[%clk 0:00:49.9]} 27... Bb5 {[%clk
0:00:02.6]} 28. d5 {[%clk 0:00:45.3]} 28... a6 {[%clk 0:00:02.4]} 29. d6 {[%clk
0:00:45]} 1-0

[Event "*** Titled Tuesday Blitz"]
[Site "Chess.com"]
[Date "2021.04.27"]
[Round "7"]
[White "barbara25"]
[Black "MeekinsKris"]
[Result "0-1"]
[WhiteElo "2275"]
[BlackElo "2214"]
[TimeControl "180+1"]
[EndTime "11:16:05 PDT"]
[Termination "MeekinsKris won by resignation"]

1. e4 {[%clk 0:02:57.7]} 1... e5 {[%clk 0:02:57.9]} 2. Nf3 {[%clk 0:02:49.7]}
2... Nf6 {[%clk 0:02:58]} 3. d4 {[%clk 0:02:43.9]} 3... exd4 {[%clk 0:02:54.2]}
4. e5 {[%clk 0:02:42.1]} 4... Ne4 {[%clk 0:02:54]} 5. Qxd4 {[%clk 0:02:39.6]}
5... d5 {[%clk 0:02:54]} 6. exd6 {[%clk 0:02:39]} 6... Nxd6 {[%clk 0:02:53.4]}
7. Bd3 {[%clk 0:02:38.7]} 7... Nc6 {[%clk 0:02:52.2]} 8. Qe3+ {[%clk 0:02:37.7]}
8... Be7 {[%clk 0:02:51.4]} 9. O-O {[%clk 0:02:37.7]} 9... O-O {[%clk
0:02:51.4]} 10. Rd1 {[%clk 0:02:35.9]} 10... Nf5 {[%clk 0:02:02]} 11. Qe1 {[%clk
0:02:24.6]} 11... Bd6 {[%clk 0:02:00.2]} 12. Nc3 {[%clk 0:02:23]} 12... Re8
{[%clk 0:01:52.9]} 13. Qf1 {[%clk 0:02:21.4]} 13... Nh4 {[%clk 0:01:47.8]} 14.
Nxh4 {[%clk 0:02:18.1]} 14... Qxh4 {[%clk 0:01:48.7]} 15. g3 {[%clk 0:02:18.4]}
15... Qh5 {[%clk 0:01:45.7]} 16. Be2 {[%clk 0:02:13.6]} 16... Bg4 {[%clk
0:01:44.4]} 17. Bxg4 {[%clk 0:02:13.4]} 17... Qxg4 {[%clk 0:01:45.3]} 18. Be3
{[%clk 0:02:13.1]} 18... Rad8 {[%clk 0:01:37.2]} 19. Qg2 {[%clk 0:02:11.8]}
19... Qf5 {[%clk 0:01:32.9]} 20. Rac1 {[%clk 0:02:09.6]} 20... Be5 {[%clk
0:01:30.5]} 21. a3 {[%clk 0:01:51.7]} 21... Bxc3 {[%clk 0:01:29.5]} 22. bxc3
{[%clk 0:01:51.7]} 22... Qa5 {[%clk 0:01:24.5]} 23. Bf4 {[%clk 0:01:43.2]} 23...
Rxd1+ {[%clk 0:01:18]} 24. Rxd1 {[%clk 0:01:39.5]} 24... Qxc3 {[%clk 0:01:17.2]}
25. Bxc7 {[%clk 0:01:38.7]} 25... Qxc2 {[%clk 0:01:15.6]} 26. Rf1 {[%clk
0:01:38.8]} 26... Nd4 {[%clk 0:01:11.2]} 27. Ba5 {[%clk 0:01:36.9]} 27... Qf5
{[%clk 0:00:58]} 28. Bb4 {[%clk 0:01:25.5]} 28... Nf3+ {[%clk 0:00:56.1]} 29.
Kh1 {[%clk 0:01:25.8]} 29... Re6 {[%clk 0:00:52.5]} 30. g4 {[%clk 0:01:26]}
30... Qf4 {[%clk 0:00:52.1]} 31. Rd1 {[%clk 0:01:21.9]} 31... h5 {[%clk
0:00:44]} 32. Qg3 {[%clk 0:01:15.7]} 32... Qxg4 {[%clk 0:00:38.8]} 33. Qxg4
{[%clk 0:01:11.8]} 33... hxg4 {[%clk 0:00:39.7]} 34. Rd8+ {[%clk 0:01:10.7]}
34... Kh7 {[%clk 0:00:39.4]} 35. Rd7 {[%clk 0:01:10.9]} 35... Kg6 {[%clk
0:00:37.8]} 36. Rxb7 {[%clk 0:01:08.9]} 36... a6 {[%clk 0:00:38]} 37. Kg2 {[%clk
0:01:07.7]} 37... f5 {[%clk 0:00:37.5]} 38. Bc3 {[%clk 0:01:05.1]} 38... Ne5
{[%clk 0:00:37.5]} 39. Bxe5 {[%clk 0:01:04.4]} 39... Rxe5 {[%clk 0:00:37.5]} 40.
Rb6+ {[%clk 0:01:05]} 40... Kg5 {[%clk 0:00:37.7]} 41. Rxa6 {[%clk 0:01:05.4]}
41... f4 {[%clk 0:00:37.9]} 42. a4 {[%clk 0:01:02]} 42... Kh4 {[%clk 0:00:36.5]}
43. Ra7 {[%clk 0:00:56.8]} 43... Rd5 {[%clk 0:00:34.9]} 44. Rxg7 {[%clk
0:00:50.5]} 44... f3+ {[%clk 0:00:34.7]} 0-1